bitfinex/quotes_SOLUSD_20250206
["timestamp","ask_amount","ask_price","bid_price","bid_amount"]
[1738880652828,6.247,191.82,191.78,14.93130437]
[1738880653132,0.063,191.83,191.78,33.6829429]
[1738880653918,0.063,191.83,191.75,14.80581437]
[1738880653919,14.86881437,191.83,191.75,14.80581437]
[1738880654324,14.86881437,191.83,191.76,14.80581437]
[1738880654731,0.063,191.83,191.77,14.80581437]
[1738880654929,0.063,191.83,191.73,20.37647]
[1738880654930,0.063,191.83,191.78,14.80581437]
[1738880655448,0.063,191.83,191.77,14.80581437]
[1738880655646,14.86881437,191.83,191.76,14.80581437]
[1738880655836,14.80581437,191.82,191.75,14.80581437]
[1738880656232,14.80581437,191.81,191.73,14.80581437]
[1738880656644,14.86881437,191.83,191.75,14.80581437]
[1738880658054,6.1118,191.78,191.73,14.80581437]
[1738880658360,6.1118,191.78,191.71,14.80581437]
[1738880661032,7.6924,191.78,191.71,14.80581437]
[1738880662436,7.6924,191.78,191.73,14.80581437]
[1738880666356,0.063,191.79,191.73,14.80581437]
[1738880668063,0.063,191.79,191.77,14.80581437]
[1738880670942,0.063,191.79,191.78,0.25098]
[1738880671145,0.063,191.79,191.78,13.66282853]
[1738880671360,0.063,191.79,191.78,13.78831853]
[1738880671539,0.063,191.83,191.81,0.12549]
[1738880671742,0.063,191.83,191.82,29.25028516]
[1738880672645,0.063,191.89,191.84,0.12549]
[1738880672845,0.063,191.89,191.88,14.80581437]
[1738880673266,0.063,191.89,191.88,14.93130437]
[1738880679443,0.063,191.89,191.88,28.4686429]
[1738880679648,0.063,191.89,191.88,33.6801429]
[1738880680749,0.063,191.89,191.88,14.93130437]
[1738880681465,0.063,191.9,191.88,14.93130437]
[1738880681657,0.063,191.9,191.89,0.12549]
[1738880683479,0.063,191.9,191.89,18.99961853]
[1738880689771,0.063,191.9,191.88,15.5872813]
[1738880689982,0.063,191.9,191.88,14.80581437]
[1738880691077,0.063,191.9,191.86,14.80581437]
[1738880691491,0.063,191.9,191.84,14.80581437]
[1738880696009,1.5906,191.89,191.82,14.80581437]
[1738880696290,14.80581437,191.87,191.78,14.80581437]
[1738880696473,14.80581437,191.85,191.77,0.063]
[1738880696672,14.80581437,191.83,191.77,0.063]
[1738880696876,14.30581437,191.83,191.77,0.063]
[1738880697188,14.80581437,191.78,191.77,0.063]
[1738880697369,1.5906,191.79,191.77,0.063]
[1738880701193,6.1004,191.84,191.78,14.80581437]
[1738880701790,14.80581437,191.82,191.77,0.063]
[1738880702794,14.80581437,191.8,191.77,0.063]
[1738880703470,34.80581437,191.78,191.77,0.063]
[1738880703875,34.80581437,191.78,191.77,0.0001]
[1738880704682,34.93130437,191.78,191.77,0.0001]
[1738880705081,87.3810329,191.78,191.77,0.0001]
[1738880705290,1.0,191.77,191.72,0.063]
[1738880705473,14.80581437,191.73,191.72,0.063]
[1738880706707,59.5941329,191.73,191.72,0.0001]
[1738880706896,14.93130437,191.73,191.72,0.0001]
[1738880710179,59.5941329,191.73,191.72,0.0001]
[1738880710386,60.5941329,191.73,191.72,0.0001]
[1738880710700,20.0,191.68,191.58,1.5748]
[1738880710909,14.80581437,191.65,191.58,1.5748]
[1738880711402,20.0,191.6,191.57,0.063]
[1738880711635,14.80581437,191.63,191.57,0.063]
[1738880711812,20.0,191.6,191.57,0.063]
[1738880712382,14.80581437,191.65,191.57,0.063]
[1738880712595,14.80581437,191.67,191.58,14.80581437]
[1738880713005,20.0,191.64,191.58,14.80581437]
[1738880713610,14.80581437,191.67,191.58,14.80581437]
[1738880714814,14.80581437,191.67,191.58,20.02541437]
[1738880716909,14.80581437,191.65,191.58,14.80581437]
[1738880717511,14.80581437,191.65,191.57,0.063]
[1738880718319,14.80581437,191.63,191.57,0.063]
[1738880719313,14.80581437,191.61,191.57,0.063]
[1738880719509,14.80581437,191.59,191.57,0.063]
[1738880720016,13.41184853,191.67,191.57,0.063]
[1738880720017,14.80581437,191.68,191.59,0.12549]
[1738880720216,1.635,191.7,191.62,14.80581437]
[1738880720405,14.80581437,191.71,191.62,20.02431437]
[1738880720615,20.0,191.68,191.62,20.02431437]
[1738880721307,14.80581437,191.69,191.6,14.80581437]
[1738880722721,14.80581437,191.71,191.62,14.80581437]
[1738880723020,20.0,191.68,191.62,14.80581437]
[1738880723819,14.80581437,191.71,191.62,20.02431437]
[1738880724392,14.80581437,191.71,191.64,14.80581437]
[1738880725097,14.80581437,191.71,191.64,20.02381437]
[1738880731120,14.80581437,191.71,191.63,5.2183]
[1738880731426,14.80581437,191.71,191.62,20.02421437]
[1738880733321,14.80581437,191.69,191.62,20.02421437]
[1738880734817,14.80581437,191.69,191.62,14.80581437]
[1738880735220,14.80581437,191.69,191.64,0.063]
[1738880736645,14.80581437,191.71,191.64,0.063]
[1738880737030,34.80581437,191.65,191.64,0.063]
[1738880737717,34.93130437,191.65,191.57,0.063]
[1738880737904,14.80581437,191.62,191.57,0.063]
[1738880738497,20.0,191.59,191.57,0.063]
[1738880738723,9.43030427,191.61,191.57,0.063]
[1738880740626,14.73336286,191.62,191.57,0.063]
[1738880742026,14.73336286,191.64,191.57,0.063]
[1738880742629,14.73336286,191.66,191.57,0.063]
[1738880742805,4.74,191.68,191.57,0.063]
[1738880742806,14.73336286,191.68,191.58,14.73336286]
[1738880743010,14.73336286,191.68,191.6,14.73336286]
[1738880743332,82.1,191.7,191.62,14.73336286]
[1738880743333,14.73336286,191.7,191.62,14.73336286]
[1738880744131,14.73336286,191.7,191.62,19.95176286]
[1738880744311,14.76336286,191.72,191.64,14.73336286]
[1738880745317,20.0,191.71,191.66,14.73336286]
[1738880745518,0.03,191.72,191.66,14.73336286]
[1738880745825,0.03,191.72,191.66,19.95086286]
[1738880746002,0.03,191.72,191.68,14.73336286]
[1738880746926,0.03,191.72,191.66,14.73336286]
[1738880749730,0.03,191.72,191.6,21.55646286]
[1738880749731,14.73336286,191.7,191.6,21.55646286]
[1738880749927,14.73336286,191.68,191.6,16.33736286]
[1738880750825,14.73336286,191.66,191.6,1.604]
[1738880751212,14.73336286,191.66,191.57,0.063]
[1738880751805,14.73336286,191.64,191.57,0.063]
[1738880752698,50.13184853,191.69,191.57,0.063]
[1738880752699,14.73336286,191.62,191.57,0.063]
[1738880753937,14.73336286,191.6,191.57,0.063]
[1738880755204,20.0,191.59,191.57,0.063]
[1738880756932,14.73336286,191.64,191.57,0.063]
[1738880757231,20.0,191.61,191.57,0.063]
[1738880761938,14.73336286,191.62,191.57,0.063]
[1738880772024,20.0,191.61,191.57,0.063]
[1738880772644,20.0,191.62,191.57,9.488824]
[1738880773035,0.03,191.64,191.57,14.708724]
[1738880773232,0.03,191.64,191.59,9.425824]
[1738880774651,20.03,191.64,191.6,14.72289855]
[1738880775155,0.03,191.64,191.6,14.72289855]
[1738880780435,0.03,191.64,191.62,14.72289855]
[1738880781147,0.03,191.64,191.63,0.12549]
[1738880781759,0.03,191.64,191.63,13.66282853]
[1738880781962,0.03,191.64,191.63,33.72951708]
[1738880782256,0.03,191.71,191.64,13.41184853]
[1738880782433,0.03,191.71,191.7,14.72289855]
[1738880783965,0.03,191.71,191.7,20.06478855]
[1738880784264,0.03,191.71,191.7,33.60212708]
[1738880784444,0.03,191.71,191.7,49.23272555]
[1738880785664,0.03,191.83,191.71,13.78831853]
[1738880785967,20.0,191.82,191.77,14.72289855]
[1738880786264,0.03,191.83,191.77,14.72289855]
[1738880786644,0.03,191.83,191.78,14.72289855]
[1738880788145,0.03,191.83,191.8,14.72289855]
[1738880788658,0.03,191.83,191.82,14.72289855]
[1738880789559,0.03,191.83,191.82,28.38572708]
[1738880790070,0.03,191.83,191.82,33.59892708]
[1738880790551,0.03,191.83,191.82,33.72441708]
[1738880793367,0.03,191.83,191.82,14.84838855]
[1738880793748,0.03,191.83,191.82,14.72289855]
[1738880798471,0.03,191.83,191.82,14.84838855]
[1738880798947,0.03,191.83,191.82,14.72289855]
[1738880799151,0.03,191.83,191.8,14.72289855]
[1738880806780,0.03,191.83,191.81,9.40193192]
[1738880810771,0.03,191.83,191.81,14.61533192]
[1738880815299,0.03,191.83,191.82,19.00151853]
[1738880819201,0.03,191.83,191.81,9.40193192]
[1738880821893,0.03,191.83,191.77,9.40193192]
[1738880822396,0.03,191.83,191.75,9.40193192]
[1738880823404,0.03,191.83,191.77,9.40193192]
[1738880828897,0.03,191.83,191.72,0.063]
[1738880828898,9.40193192,191.79,191.72,0.063]
[1738880830686,9.40193192,191.81,191.72,0.063]
[1738880833398,9.40193192,191.81,191.72,5.40419]
[1738880834484,9.40193192,191.81,191.73,9.40193192]
[1738880837117,9.40193192,191.81,191.72,0.063]
[1738880837617,9.40193192,191.79,191.72,0.063]
[1738880838129,9.40193192,191.81,191.73,9.40193192]
[1738880838923,9.40193192,191.79,191.72,0.063]
[1738880846029,20.0,191.78,191.72,0.063]
[1738880848728,9.40193192,191.81,191.73,9.40193192]
[1738880849502,9.43193192,191.83,191.75,9.40193192]
[1738880862540,0.03,191.83,191.77,9.40193192]
[1738880862716,0.03,191.83,191.79,9.40193192]
[1738880863218,0.03,191.83,191.81,9.40193192]
[1738880864436,0.03,191.83,191.82,9.40193192]
[1738880865843,0.03,191.83,191.82,14.61513192]
[1738880869039,0.03,191.83,191.82,28.27796045]
[1738880871920,0.03,191.83,191.82,28.40345045]
[1738880887246,0.03,191.83,191.82,14.61513192]
[1738880887953,0.03,191.83,191.82,14.74062192]
[1738880890354,0.03,191.83,191.82,29.40345045]
[1738880891146,0.03,191.83,191.82,28.40345045]
[1738880893244,0.03,191.84,191.83,18.87572853]
[1738880893447,0.0001,191.84,191.83,20.78281112]
[1738880894047,0.0001,191.84,191.83,19.78281112]
[1738880894650,0.0001,191.84,191.83,21.90830112]
[1738880894967,0.063,191.9,191.89,0.12549]
[1738880895173,0.063,191.9,191.89,9.52742192]
[1738880895350,0.063,191.9,191.89,28.27606045]
[1738880895550,0.063,191.9,191.89,28.40155045]
[1738880896554,0.0001,191.9,191.89,67.79057093]
[1738880897268,0.0001,191.9,191.89,66.79057093]
[1738880897467,0.0001,191.9,191.89,67.79057093]
[1738880897965,0.0001,191.9,191.89,69.07897127]
[1738880898360,0.0001,191.9,191.89,70.70717127]
[1738880899683,0.0001,191.9,191.89,33.40805465]
[1738880902677,0.063,191.98,191.89,42.80998657]
[1738880902855,0.03,192.01,191.98,0.25098]
[1738880903063,0.03,192.01,192.0,9.40193192]
[1738880903888,0.03,192.01,192.0,14.73572192]
[1738880904251,0.03,192.01,192.0,28.27306045]
[1738880904674,0.03,192.01,192.0,28.39855045]
[1738880904978,0.03,192.01,192.0,66.78725165]
[1738880906572,0.03,192.03,192.02,13.78831853]
[1738880906875,0.03,192.03,192.02,23.9710369]
[1738880907064,0.03,192.03,192.02,43.9710369]
[1738880907267,0.03,192.03,192.02,45.0965269]
[1738880907467,0.03,192.09,192.03,13.78831853]
[1738880907669,0.03,192.09,192.06,9.40193192]
[1738880908179,0.03,192.09,192.0,44.12558186]
[1738880908180,0.03,192.09,192.04,9.40193192]
[1738880908376,0.03,192.09,192.02,9.40193192]
[1738880908977,0.03,192.09,192.0,9.40193192]
[1738880909175,9.40193192,192.08,192.0,9.40193192]
[1738880909872,0.03,192.03,191.98,9.40193192]
[1738880910764,6.4969,192.03,191.98,9.40193192]
[1738880911164,8.1578,192.03,191.98,9.40193192]
[1738880911596,8.1578,192.03,191.92,9.40193192]
[1738880911597,9.40193192,192.0,191.92,9.40193192]
[1738880911779,29.40193192,192.0,191.9,9.40193192]
[1738880911962,9.40193192,191.98,191.9,9.40193192]
[1738880912683,9.40193192,191.98,191.89,0.063]
[1738880912684,8.1278,191.97,191.89,0.063]
[1738880913958,8.1278,191.97,191.9,9.40193192]
[1738880914370,8.1278,191.97,191.91,9.40193192]
[1738880914567,8.1278,191.97,191.92,14.6733808]
[1738880916571,8.1278,191.97,191.9,14.6733808]
[1738880921492,8.1278,191.97,191.9,14.7363808]
[1738880922372,8.1278,191.97,191.92,14.6733808]
[1738880926195,14.6733808,192.0,191.93,0.12549]
[1738880926398,8.1288,192.02,191.94,14.6733808]
[1738880928579,14.6733808,192.01,191.92,14.6733808]
[1738880931393,20.0,191.98,191.92,14.6733808]
[1738880931596,14.6733808,191.99,191.9,14.7363808]
[1738880933503,14.6733808,191.99,191.92,0.063]
[1738880934599,29.39321151,191.98,191.92,0.063]
[1738880942704,20.0,191.98,191.92,0.063]
[1738880946522,9.39321151,191.97,191.92,0.063]
[1738880951914,0.12549,191.96,191.92,0.063]
[1738880952116,29.39321151,191.95,191.92,0.063]
[1738880952808,9.39321151,191.95,191.92,0.063]
[1738880953111,29.39321151,191.95,191.92,0.063]
[1738880958919,10.39321151,192.01,191.92,0.063]
[1738880959218,20.0,191.98,191.92,0.063]
[1738880960008,18.0,191.98,191.92,0.063]
[1738880962540,9.39321151,192.01,191.92,0.063]
[1738880962710,8.1479,192.02,191.93,9.39321151]
[1738880963016,9.42321151,192.03,191.93,9.39321151]
[1738880963223,9.42321151,192.03,191.95,9.39321151]
[1738880963629,20.0,192.02,191.95,14.60281151]
[1738880963832,0.03,192.03,191.97,9.39321151]
[1738880964720,0.03,192.03,191.99,9.39321151]
[1738880965221,0.03,192.03,192.01,9.39321151]
[1738880965932,9.42321151,192.09,192.02,0.12549]
[1738880966142,8.07551799,192.12,192.08,15.95211151]
[1738880966426,6.07499571,192.16,192.11,29.39321151]
[1738880966598,6.07499571,192.16,192.13,9.39321151]
[1738880966804,6.07499571,192.16,192.15,9.39321151]
[1738880967002,8.13131037,192.18,192.15,9.39321151]
[1738880967424,8.13131037,192.18,192.15,10.70004746]
[1738880967725,1.76602358,192.18,192.17,9.39321151]
[1738880968024,1.76602358,192.18,192.17,9.51870151]
[1738880968405,1.76602358,192.18,192.17,9.64419151]
[1738880968937,0.03,192.23,192.18,0.25098]
[1738880969228,0.03,192.23,192.22,9.39321151]
[1738880970699,0.03,192.23,192.22,14.62507587]
[1738880970902,0.03,192.23,192.22,14.87605587]
[1738880971524,0.03,192.23,192.22,29.19347235]
[1738880971830,0.03,192.23,192.22,30.82577235]
[1738880972031,0.03,192.23,192.22,36.02807235]
[1738880972717,0.11318038,192.33,192.26,20.37647]
[1738880972906,0.11318038,192.33,192.32,14.62507587]
[1738880974821,0.12858101,192.36,192.33,13.78831853]
[1738880975017,0.12858101,192.36,192.35,14.62507587]
[1738880975823,0.12858101,192.36,192.35,28.4133944]
[1738880976843,0.03,192.36,192.35,28.4133944]
[1738880977030,0.13094063,192.36,192.35,30.78185556]
[1738880977211,0.07632396,192.37,192.36,13.53733853]
[1738880977613,1e-08,192.37,192.36,13.78831853]
[1738880977813,0.11427418,192.39,192.36,13.53733853]
[1738880978030,0.07239748,192.39,192.38,14.87605587]
[1738880978331,0.07239748,192.39,192.38,14.62507587]
[1738880979632,14.62507587,192.46,192.38,14.62507587]
[1738880981617,20.0,192.47,192.38,14.62507587]
[1738880982331,14.62507587,192.48,192.4,14.62507587]
[1738880982713,20.0,192.49,192.37,0.25098]
[1738880983034,14.62507587,192.53,192.44,14.62507587]
[1738880983334,20.0,192.5,192.44,14.62507587]
[1738880984135,14.62507587,192.51,192.42,14.62507587]
[1738880984341,14.62507587,192.47,192.4,14.62507587]
[1738880984529,14.62507587,192.47,192.38,14.62507587]
[1738880985135,6.6358,192.46,192.38,14.62507587]
[1738880986728,14.62507587,192.47,192.38,14.62507587]
[1738880988337,14.62507587,192.44,192.36,14.62507587]
[1738880988636,14.62507587,192.42,192.34,14.62507587]
[1738880989638,14.62507587,192.44,192.34,14.62507587]
[1738880990045,14.62507587,192.44,192.36,14.62507587]
[1738880992633,14.62507587,192.46,192.38,14.62507587]
[1738880992841,14.62507587,192.44,192.36,14.62507587]
[1738880995043,14.62507587,192.44,192.34,14.68807587]
[1738880995224,14.62507587,192.42,192.34,14.68807587]
[1738880995733,14.62507587,192.41,192.34,1.063]
[1738880996138,14.62507587,192.41,192.34,0.063]
[1738880997156,0.11311142,192.35,192.34,0.063]
[1738880998149,0.11311142,192.35,192.34,1.063]
[1738880998351,0.11311142,192.35,192.34,0.063]
[1738880998725,0.11311142,192.35,192.34,1.063]
[1738880999150,0.11311142,192.35,192.34,0.063]
[1738880999827,0.11236981,192.38,192.34,0.063]
[1738881000026,14.73744568,192.38,192.34,0.063]
[1738881000225,14.73744568,192.38,192.26,15.62507587]
[1738881000226,34.62507587,192.35,192.26,15.62507587]
[1738881000441,14.62507587,192.33,192.26,15.62507587]
[1738881000746,20.0,192.24,192.22,0.063]
[1738881000945,14.62507587,192.25,192.22,0.063]
[1738881001153,20.0,192.23,192.22,0.063]
[1738881001665,14.62507587,192.23,192.22,0.063]
[1738881002039,14.62507587,192.23,192.22,0.0001]
[1738881002241,28.4133944,192.23,192.22,0.0001]
[1738881002453,34.6816944,192.23,192.22,0.0001]
[1738881002649,35.6816944,192.23,192.22,0.0001]
[1738881002963,44.78831853,192.22,192.14,0.063]
[1738881003168,14.62507587,192.16,192.14,0.063]
[1738881004241,20.0,192.12,192.03,14.62507587]
[1738881004444,14.62507587,192.11,192.03,14.62507587]
[1738881005132,10.45533718,192.1,192.03,14.62507587]
[1738881005542,1.0,192.04,192.03,14.62507587]
[1738881005930,1.0,192.05,192.03,14.62507587]
[1738881006349,1.0,192.04,192.03,14.62507587]
[1738881006541,1.0,192.05,192.03,14.62507587]
[1738881007054,1.0,192.04,192.03,14.62507587]
[1738881008666,1.0,192.06,192.03,14.62507587]
[1738881009044,1.0,192.05,192.03,14.62507587]
[1738881010878,1.0,192.05,192.04,14.62507587]
[1738881011084,1.0,192.03,192.02,14.62507587]
[1738881011750,1.0,192.01,192.0,14.62507587]
[1738881012880,1.0,192.02,192.0,14.62507587]
[1738881013172,1.0,192.01,192.0,14.62507587]
[1738881014045,1.0,191.99,191.98,14.62507587]
[1738881014669,1.0,191.99,191.96,14.62507587]
[1738881014854,1.0,191.98,191.96,14.62507587]
[1738881015072,1.0,191.97,191.96,14.62507587]
[1738881015271,1.0,191.97,191.94,14.62507587]
[1738881015579,1.0,191.95,191.94,14.62507587]
[1738881016185,1.0,191.95,191.92,14.68807587]
[1738881016387,1.0,191.95,191.94,0.063]
[1738881017061,21.0,191.95,191.94,0.063]
[1738881017398,34.41184853,191.95,191.94,0.063]
[1738881018297,14.41184853,191.93,191.92,0.063]
[1738881018471,29.1624144,191.93,191.92,0.063]
[1738881018989,29.1624144,191.93,191.92,0.0001]
[1738881018990,29.2879044,191.93,191.92,0.0001]
[1738881019790,29.1624144,191.93,191.92,0.0001]
[1738881020486,1.0,191.93,191.92,0.0001]
[1738881025462,1.0,191.87,191.82,20.0]
[1738881025661,1.0,191.87,191.86,14.62507587]
[1738881028578,1.0,191.88,191.86,14.68807587]
[1738881029067,1.0,191.87,191.86,14.68807587]
[1738881029584,1.0,191.88,191.86,19.90007587]
[1738881030891,1.0,191.89,191.87,14.62507587]
[1738881037182,1.0,191.89,191.88,14.62507587]
[1738881040784,1.0,191.91,191.88,14.62507587]
[1738881040987,0.03,191.89,191.87,5.2118]
[1738881041707,1.03,191.89,191.87,5.2118]
[1738881042084,1.03,191.89,191.86,0.063]
[1738881042085,1.03,191.89,191.88,14.62507587]
[1738881044302,1.03,191.89,191.86,5.2751]
[1738881044303,1.0,191.87,191.86,14.68807587]
[1738881044500,2.0,191.87,191.86,14.68807587]
[1738881044705,2.0,191.87,191.86,0.063]
[1738881045604,22.5211,191.87,191.86,0.063]
[1738881049083,1.0,191.84,191.83,14.62507587]
[1738881049298,2.0,191.84,191.83,14.62507587]
[1738881050704,2.5212,191.84,191.83,14.62507587]
[1738881056936,1.0,191.84,191.83,14.62507587]
[1738881057644,0.03,191.87,191.84,0.12549]
[1738881057855,0.03,191.87,191.86,14.75056587]
[1738881058227,0.03,191.87,191.86,14.87605587]
[1738881058724,0.03,191.87,191.86,14.85525993]
[1738881058918,0.03,191.87,191.86,28.39259846]
[1738881059242,0.03,191.89,191.88,0.12549]
[1738881059535,0.0001,191.89,191.88,60.74921818]
[1738881059749,0.0001,191.89,191.88,9.64315993]
[1738881059924,0.0001,191.89,191.88,9.76864993]
[1738881060325,0.03,191.95,191.9,0.12549]
[1738881060539,1.0,191.93,191.92,9.39217993]
[1738881060725,1.0,191.93,191.92,14.67407685]
[1738881061047,2.0,191.89,191.86,14.67407685]
[1738881061228,2.0,191.88,191.86,14.67407685]
[1738881061547,1.0,191.88,191.86,14.67407685]
[1738881061932,2.0,191.89,191.86,14.67407685]
[1738881062243,1.0,191.88,191.86,14.67407685]
[1738881062741,2.0,191.88,191.86,14.67407685]
[1738881062939,1.0,191.87,191.84,14.67407685]
[1738881063124,2.0,191.88,191.84,14.67407685]
[1738881063327,1.0,191.85,191.84,14.67407685]
[1738881064243,1.0,191.86,191.84,14.67407685]
[1738881064428,1.0,191.87,191.84,19.88667685]
[1738881064837,1.0,191.85,191.84,19.88667685]
[1738881065943,2.0,191.88,191.84,19.88667685]
[1738881066136,1.0,191.85,191.84,19.88667685]
[1738881066949,1.0,191.86,191.84,19.88667685]
[1738881075249,1.0,191.86,191.84,14.67407685]
[1738881075450,1.0,191.86,191.8,15.94612662]
[1738881075451,1.0,191.83,191.8,14.67407685]
[1738881075669,2.0,191.79,191.77,0.063]
[1738881075956,1.0,191.79,191.77,0.063]
[1738881076137,2.0,191.79,191.77,0.063]
[1738881076759,1.0,191.79,191.77,0.063]
[1738881077132,1.0,191.79,191.77,14.73707685]
[1738881077332,1.0,191.78,191.77,0.063]
[1738881078139,2.0,191.78,191.77,0.063]
[1738881083257,1.0,191.78,191.73,5.2156]
[1738881083458,2.0,191.78,191.75,14.67407685]
[1738881083645,1.0,191.76,191.75,14.67407685]
[1738881085162,1.0,191.76,191.75,19.88917685]
[1738881086590,2.0,191.76,191.75,5.2151]
[1738881087477,1.0,191.75,191.74,5.2153]
[1738881088375,2.0,191.75,191.74,5.2153]
[1738881088754,2.0,191.75,191.74,9.40903685]
[1738881089655,1.0,191.75,191.74,9.40903685]
[1738881090562,6.5134,191.82,191.72,0.063]
[1738881090563,2.0,191.73,191.72,0.063]
[1738881090757,3.6584,191.73,191.72,0.063]
[1738881090957,23.32304853,191.73,191.72,0.063]
[1738881091166,10.4327,191.73,191.72,0.063]
[1738881091566,9.9112,191.73,191.72,0.063]
[1738881092679,2.0,191.73,191.72,0.063]
[1738881092866,1.0,191.73,191.72,0.063]
[1738881093074,2.0,191.73,191.72,0.063]
[1738881094683,2.64699,191.73,191.72,0.063]
[1738881094854,37.16028967,191.73,191.72,0.063]
[1738881095251,38.91617967,191.73,191.72,0.063]
[1738881097069,38.91617967,191.73,191.7,0.063]
[1738881097070,14.53733853,191.71,191.7,0.063]
[1738881097255,30.22546184,191.71,191.7,0.063]
[1738881098184,30.74706184,191.71,191.7,0.063]
[1738881098752,30.99804184,191.71,191.7,0.063]
[1738881098965,31.99804184,191.71,191.7,0.063]
[1738881100370,46.78831853,191.7,191.69,0.063]
[1738881101285,20.0,191.63,191.6,0.063]
[1738881101455,1.0,191.61,191.6,0.063]
[1738881102522,2.0,191.61,191.6,0.063]
[1738881108005,2.0,191.61,191.6,14.77269165]
[1738881108596,8.5106,191.67,191.6,14.77269165]
[1738881108597,2.0,191.64,191.61,5.2189]
[1738881108905,2.0,191.64,191.63,14.70969165]
[1738881109082,2.0,191.65,191.63,14.70969165]
[1738881109289,1.0,191.66,191.64,14.70969165]
[1738881109599,2.0,191.67,191.64,14.70969165]
[1738881110396,1.0,191.66,191.65,5.2178]
[1738881110909,2.0,191.68,191.65,5.2178]
[1738881111106,2.0,191.68,191.66,14.70969165]
[1738881111403,2.0,191.69,191.66,14.70969165]
[1738881111602,1.0,191.69,191.66,14.70969165]
[1738881111992,2.0,191.71,191.68,14.70969165]
[1738881112392,1.0,191.71,191.68,14.70969165]
[1738881112695,1.0,191.71,191.68,19.92659165]
[1738881112896,2.0,191.7,191.68,19.92659165]
[1738881114314,1.0,191.69,191.68,19.92659165]
[1738881115015,2.03,191.7,191.68,19.92659165]
[1738881115215,0.622,191.7,191.68,19.92659165]
[1738881120620,0.592,191.68,191.66,14.70969165]
[1738881121003,0.592,191.64,191.62,14.70969165]
[1738881121207,0.592,191.61,191.6,14.77269165]
[1738881122210,0.592,191.61,191.6,0.063]
[1738881124013,0.592,191.62,191.6,0.063]
[1738881125822,0.592,191.64,191.6,29.4823833]
[1738881126024,0.592,191.69,191.63,14.70969165]
[1738881126222,0.592,191.69,191.67,14.70969165]
[1738881127503,0.03,191.7,191.67,14.70969165]
[1738881127710,0.03,191.7,191.69,19.92639165]
[1738881127905,0.622,191.7,191.67,14.70969165]
[1738881128924,0.03,191.7,191.67,14.70969165]
[1738881130520,0.622,191.7,191.69,14.70969165]
[1738881130715,0.03,191.7,191.69,14.70969165]
[1738881134614,0.03,191.7,191.69,19.92639165]
[1738881135426,0.03,191.7,191.69,20.05188165]
[1738881135627,0.622,191.7,191.69,19.92639165]
[1738881135932,0.622,191.7,191.69,14.70969165]
[1738881136134,0.592,191.69,191.65,14.70969165]
[1738881136318,0.03,191.7,191.65,14.70969165]
[1738881136319,0.592,191.68,191.65,14.70969165]
[1738881136738,0.592,191.69,191.65,14.70969165]
[1738881136919,0.592,191.68,191.65,14.70969165]
[1738881139033,0.592,191.69,191.65,19.92739165]
[1738881140629,0.592,191.69,191.66,9.416553]
[1738881142942,0.592,191.68,191.66,9.416553]
[1738881143121,0.592,191.69,191.66,9.416553]
[1738881143514,0.592,191.66,191.64,9.416553]
[1738881143719,0.03,191.7,191.62,9.416553]
[1738881143720,0.592,191.65,191.62,9.416553]
[1738881143918,0.592,191.65,191.62,14.635053]
[1738881145237,0.592,191.66,191.62,14.635053]
[1738881145432,0.592,191.67,191.64,9.416553]
[1738881145614,0.592,191.66,191.64,9.416553]
[1738881146942,0.592,191.65,191.64,9.416553]
[1738881147131,0.592,191.63,191.62,9.416553]
[1738881148342,0.592,191.62,191.6,9.479553]
[1738881148641,0.592,191.61,191.6,0.063]
[1738881150623,21.86724853,191.61,191.6,0.063]